bitfinex/quotes_BTCUSD_20250809
["timestamp","ask_amount","ask_price","bid_price","bid_amount"]
[1754707980138,0.33240803,116580.0,116570.0,0.003]
[1754707983731,0.33240803,116580.0,116570.0,0.32067295]
[1754707983996,0.33240803,116580.0,116570.0,0.003]
[1754707985123,0.33240803,116580.0,116570.0,0.32067295]
[1754707986563,0.33240803,116580.0,116570.0,0.003]
[1754707987800,0.20264803,116580.0,116570.0,0.003]
[1754707987941,0.33244803,116580.0,116570.0,0.003]
[1754707994840,0.65012098,116580.0,116570.0,0.003]
[1754707995817,0.33244803,116580.0,116570.0,0.003]
[1754707995982,0.65012098,116580.0,116570.0,0.003]
[1754708006925,0.33244803,116580.0,116570.0,0.003]
[1754708007098,0.65012098,116580.0,116570.0,0.003]
[1754708012058,0.33244803,116580.0,116570.0,0.003]
[1754708012282,0.65012098,116580.0,116570.0,0.003]
[1754708020023,0.73228721,116580.0,116570.0,0.003]
[1754708020741,0.65012098,116580.0,116570.0,0.003]
[1754708021964,0.65008098,116580.0,116570.0,0.003]
[1754708032224,0.33240803,116580.0,116570.0,0.003]
[1754708032426,0.65008098,116580.0,116570.0,0.003]
[1754708032631,0.33240803,116580.0,116570.0,0.003]
[1754708032809,0.70047592,116580.0,116570.0,0.003]
[1754708040394,0.38280297,116580.0,116570.0,0.003]
[1754708040605,0.70047592,116580.0,116570.0,0.003]
[1754708044052,0.70900671,116580.0,116570.0,0.003]
[1754708045750,0.70047592,116580.0,116570.0,0.003]
[1754708050152,1.01814887,116580.0,116570.0,0.003]
[1754708050759,0.70047592,116580.0,116570.0,0.003]
[1754708051550,0.70047592,116580.0,116570.0,0.001]
[1754708052012,0.17157073,116570.0,116560.0,0.07726449]
[1754708052247,0.30341073,116570.0,116560.0,0.07726449]
[1754708052468,0.30655073,116570.0,116560.0,0.07726449]
[1754708053167,0.30655073,116570.0,116560.0,0.07926449]
[1754708053378,0.30655073,116570.0,116560.0,0.08026449]
[1754708067059,0.33232173,116570.0,116560.0,0.08026449]
[1754708074147,0.33232173,116570.0,116560.0,0.39793744]
[1754708081859,0.33232173,116570.0,116560.0,0.08026449]
[1754708082907,0.64999468,116570.0,116560.0,0.08026449]
[1754708083139,0.33232173,116570.0,116560.0,0.08026449]
[1754708084093,0.64999468,116570.0,116560.0,0.08026449]
[1754708085197,0.33232173,116570.0,116560.0,0.08026449]
[1754708087014,0.33232173,116570.0,116560.0,0.05026449]
[1754708093812,0.73216195,116570.0,116560.0,0.05026449]
[1754708094042,0.73216195,116570.0,116560.0,0.003]
[1754708094789,0.73216195,116570.0,116560.0,0.002]
[1754708095201,0.17160017,116550.0,116540.0,0.9080709]
[1754708095513,0.30136017,116550.0,116540.0,0.86709301]
[1754708096406,0.30136017,116550.0,116540.0,1.18476596]
[1754708096604,0.30136017,116550.0,116540.0,1.35838085]
[1754708097147,0.30136017,116550.0,116540.0,1.36038085]
[1754708097568,0.17160017,116550.0,116540.0,1.36038085]
[1754708097722,0.17160017,116550.0,116540.0,1.09458085]
[1754708102892,0.17160017,116550.0,116540.0,0.98658495]
[1754708103117,0.17160017,116550.0,116540.0,0.35123905]
[1754708103330,0.17160017,116550.0,116540.0,0.98658495]
[1754708103971,0.17160017,116550.0,116540.0,0.35123905]
[1754708104165,0.17160017,116550.0,116540.0,0.98658495]
[1754708106914,0.17662017,116550.0,116540.0,0.40185426]
[1754708107369,0.17662017,116550.0,116540.0,0.39993426]
[1754708107564,0.17662017,116550.0,116540.0,0.40768469]
[1754708107565,0.20239517,116550.0,116540.0,0.40768469]
[1754708112518,0.20239517,116550.0,116540.0,0.09001174]
[1754708112704,0.20239517,116550.0,116540.0,0.40768469]
[1754708113276,0.20239517,116550.0,116540.0,0.09001174]
[1754708113666,0.20239517,116550.0,116540.0,0.40768469]
[1754708113888,0.20239517,116550.0,116540.0,0.09001174]
[1754708114127,0.20239517,116550.0,116540.0,0.40768469]
[1754708114439,0.20239517,116550.0,116540.0,0.09001174]
[1754708114736,0.20239517,116550.0,116540.0,0.40768469]
[1754708120635,0.20239517,116550.0,116540.0,0.09001174]
[1754708120822,0.20239517,116550.0,116540.0,0.40768469]
[1754708128340,0.20239517,116550.0,116540.0,0.09001174]
[1754708128558,0.20239517,116550.0,116540.0,0.40768469]
[1754708129673,0.20239517,116550.0,116540.0,0.09001174]
[1754708129807,0.20239517,116550.0,116540.0,0.40768469]
[1754708138000,0.20239517,116550.0,116540.0,0.09001174]
[1754708138210,0.20239517,116550.0,116540.0,0.40768469]
[1754708139918,0.20239517,116550.0,116540.0,0.58121958]
[1754708140352,0.20044517,116550.0,116540.0,0.89889253]
[1754708140759,0.20044517,116550.0,116540.0,0.58121958]
[1754708140935,0.20260517,116550.0,116540.0,0.58121958]
[1754708141462,0.20260517,116550.0,116540.0,0.26354663]
[1754708141662,0.20260517,116550.0,116540.0,0.58121958]
[1754708148207,0.20260517,116550.0,116540.0,0.40960469]
[1754708150774,0.20260517,116550.0,116540.0,0.09193174]
[1754708151001,0.20260517,116550.0,116540.0,0.40960469]
[1754708160684,0.20260517,116550.0,116540.0,0.09193174]
[1754708160885,0.20260517,116550.0,116540.0,0.40768469]
[1754708161619,0.20260517,116550.0,116540.0,0.09001174]
[1754708161749,0.20260517,116550.0,116540.0,0.40768469]
[1754708162577,0.20260517,116550.0,116540.0,0.09001174]
[1754708162920,0.20260517,116550.0,116540.0,0.40768469]
[1754708164176,0.20260517,116550.0,116540.0,0.09001174]
[1754708164351,0.20260517,116550.0,116540.0,0.40768469]
[1754708166915,0.20260517,116550.0,116540.0,0.09001174]
[1754708167117,0.20260517,116550.0,116540.0,0.08801174]
[1754708167433,0.20260517,116550.0,116540.0,0.08701174]
[1754708167660,0.20260517,116550.0,116540.0,0.08801174]
[1754708174946,0.20260517,116550.0,116540.0,0.40568469]
[1754708176297,0.20260517,116550.0,116540.0,0.08801174]
[1754708176496,0.20260517,116550.0,116540.0,0.40568469]
[1754708184612,0.20260517,116550.0,116540.0,0.08801174]
[1754708184845,0.20260517,116550.0,116540.0,0.40568469]
[1754708186636,0.20260517,116550.0,116540.0,0.08801174]
[1754708186844,0.20260517,116550.0,116540.0,0.40568469]
[1754708193754,0.20260517,116550.0,116540.0,0.08801174]
[1754708193958,0.20260517,116550.0,116540.0,0.40568469]
[1754708194152,0.20260517,116550.0,116540.0,0.08801174]
[1754708194365,0.20260517,116550.0,116540.0,0.40568469]
[1754708202220,0.20260517,116550.0,116540.0,0.08801174]
[1754708219292,0.20260517,116550.0,116540.0,0.07922805]
[1754708220365,0.52027812,116550.0,116540.0,0.07922805]
[1754708220798,0.52027812,116550.0,116540.0,0.002]
[1754708221114,0.52027812,116550.0,116540.0,0.07922805]
[1754708221320,0.52027812,116550.0,116540.0,0.07822805]
[1754708221709,0.52127812,116550.0,116540.0,0.07722805]
[1754708221910,0.52327812,116550.0,116540.0,0.07722805]
[1754708222035,0.17161489,116540.0,116530.0,0.10509107]
[1754708222236,0.62407784,116540.0,116530.0,0.10509107]
[1754708222801,0.62407784,116540.0,116530.0,0.09630805]
[1754708222802,0.64985784,116540.0,116530.0,0.09630805]
[1754708223208,0.64985784,116540.0,116530.0,0.09645024]
[1754708223696,0.64985784,116540.0,116530.0,0.09745024]
[1754708223901,1.12268813,116540.0,116530.0,0.09745024]
[1754708224106,1.12268813,116540.0,116530.0,0.02022219]
[1754708224312,1.0543929,116540.0,116530.0,0.02022219]
[1754708224510,1.0543929,116540.0,116530.0,0.02122219]
[1754708225050,1.0543929,116540.0,116530.0,0.01922219]
[1754708225283,1.0553929,116540.0,116530.0,0.01922219]
[1754708225494,1.0573929,116540.0,116530.0,0.01922219]
[1754708225666,1.14418715,116540.0,116530.0,0.01922219]
[1754708229038,0.50884125,116540.0,116530.0,0.01922219]
[1754708229215,1.14418715,116540.0,116530.0,0.01922219]
[1754708235193,1.15266071,116540.0,116530.0,0.01922219]
[1754708242185,1.14418715,116540.0,116530.0,0.01922219]
[1754708272306,0.50884125,116540.0,116530.0,0.01922219]
[1754708272458,1.14418715,116540.0,116530.0,0.01922219]
[1754708273068,0.8265142,116540.0,116530.0,0.01922219]
[1754708275981,1.14418715,116540.0,116530.0,0.01922219]
[1754708283120,0.50884125,116540.0,116530.0,0.01922219]
[1754708283334,1.14418715,116540.0,116530.0,0.01922219]
[1754708284728,0.8265142,116540.0,116530.0,0.01922219]
[1754708286660,0.50884125,116540.0,116530.0,0.01922219]
[1754708286866,0.8265142,116540.0,116530.0,0.01922219]
[1754708290332,0.50884125,116540.0,116530.0,0.01922219]
[1754708290571,0.417097,116540.0,116530.0,0.02114219]
[1754708290809,0.73476995,116540.0,116530.0,0.02114219]
[1754708292864,0.73774995,116540.0,116530.0,0.02114219]
[1754708293712,0.73976995,116540.0,116530.0,0.02114219]
[1754708293918,0.8265642,116540.0,116530.0,0.02114219]
[1754708298430,0.50889125,116540.0,116530.0,0.01922219]
[1754708298666,0.8265642,116540.0,116530.0,0.01922219]
[1754708305718,1.14423715,116540.0,116530.0,0.01922219]
[1754708350484,0.50889125,116540.0,116530.0,0.01922219]
[1754708350689,1.14423715,116540.0,116530.0,0.01922219]
[1754708372160,0.50889125,116540.0,116530.0,0.01922219]
[1754708372367,1.14423715,116540.0,116530.0,0.01922219]
[1754708389019,0.50889125,116540.0,116530.0,0.01922219]
[1754708389195,1.14423715,116540.0,116530.0,0.01922219]
[1754708395414,1.01439715,116540.0,116530.0,0.01922219]
[1754708395726,1.14447715,116540.0,116530.0,0.01922219]
[1754708396299,1.01439715,116540.0,116530.0,0.01922219]
[1754708396514,1.14447715,116540.0,116530.0,0.01922219]
[1754708400519,0.50913125,116540.0,116530.0,0.01922219]
[1754708400733,1.14447715,116540.0,116530.0,0.01922219]
[1754708429540,1.14247715,116540.0,116530.0,0.01922219]
[1754708429842,1.14747715,116540.0,116530.0,0.01922219]
[1754708430046,1.14647715,116540.0,116530.0,0.01922219]
[1754708430268,1.14847715,116540.0,116530.0,0.01922219]
[1754708432603,0.51313125,116540.0,116530.0,0.01922219]
[1754708432819,1.14847715,116540.0,116530.0,0.01922219]
[1754708451479,0.51313125,116540.0,116530.0,0.01922219]
[1754708451682,1.14847715,116540.0,116530.0,0.01922219]
[1754708451905,1.14347715,116540.0,116530.0,0.02114219]
[1754708454809,1.14648715,116540.0,116530.0,0.02114219]
[1754708455140,1.14846715,116540.0,116530.0,0.02114219]
[1754708455740,1.14648715,116540.0,116530.0,0.02114219]
[1754708456062,1.14846715,116540.0,116530.0,0.02114219]
[1754708456267,1.14846715,116540.0,116530.0,0.01922219]
[1754708459495,0.51312125,116540.0,116530.0,0.01922219]
[1754708459726,1.14846715,116540.0,116530.0,0.01922219]
[1754708472817,0.51312125,116540.0,116530.0,0.01922219]
[1754708473008,1.14846715,116540.0,116530.0,0.01922219]
[1754708473248,0.51312125,116540.0,116530.0,0.01922219]
[1754708473447,1.14846715,116540.0,116530.0,0.01922219]
[1754708479274,0.51312125,116540.0,116530.0,0.01922219]
[1754708479500,1.14846715,116540.0,116530.0,0.01922219]
[1754708492720,0.51312125,116540.0,116530.0,0.01922219]
[1754708492906,1.14846715,116540.0,116530.0,0.01922219]
[1754708517580,0.51312125,116540.0,116530.0,0.01922219]
[1754708517877,1.14846715,116540.0,116530.0,0.01922219]
[1754708519262,0.51312125,116540.0,116530.0,0.01922219]
[1754708519394,1.14846715,116540.0,116530.0,0.01922219]
[1754708519743,0.51312125,116540.0,116530.0,0.01922219]
[1754708519891,1.14846715,116540.0,116530.0,0.01922219]
[1754708546938,0.51312125,116540.0,116530.0,0.01922219]
[1754708547156,1.14846715,116540.0,116530.0,0.01922219]
[1754708547384,0.51312125,116540.0,116530.0,0.01922219]
[1754708547607,1.14846715,116540.0,116530.0,0.01922219]
[1754708553049,0.51312125,116540.0,116530.0,0.01922219]
[1754708553200,1.14846715,116540.0,116530.0,0.01922219]
[1754708553410,1.01838715,116540.0,116530.0,0.01922219]
[1754708553657,1.14826715,116540.0,116530.0,0.01922219]
[1754708561550,1.01838715,116540.0,116530.0,0.01922219]
[1754708561753,1.14826715,116540.0,116530.0,0.01922219]
[1754708562920,0.51292125,116540.0,116530.0,0.01922219]
[1754708563114,1.14826715,116540.0,116530.0,0.01922219]
[1754708565377,1.01838715,116540.0,116530.0,0.01922219]
[1754708565566,1.14826715,116540.0,116530.0,0.01922219]
[1754708568137,1.01838715,116540.0,116530.0,0.01922219]
[1754708568370,1.14826715,116540.0,116530.0,0.01922219]
[1754708575529,1.01838715,116540.0,116530.0,0.01922219]
[1754708575751,1.14826715,116540.0,116530.0,0.01922219]
[1754708576376,1.01838715,116540.0,116530.0,0.01922219]
[1754708576599,1.14826715,116540.0,116530.0,0.01922219]
[1754708581262,1.01838715,116540.0,116530.0,0.01922219]
[1754708581589,1.14826715,116540.0,116530.0,0.01922219]
[1754708583113,0.51292125,116540.0,116530.0,0.01922219]
[1754708583308,1.14826715,116540.0,116530.0,0.01922219]
[1754708583508,1.01838715,116540.0,116530.0,0.01922219]
[1754708583717,1.14826715,116540.0,116530.0,0.01922219]
[1754708589910,0.51292125,116540.0,116530.0,0.01922219]
[1754708590092,1.14826715,116540.0,116530.0,0.01922219]
[1754708590603,1.01838715,116540.0,116530.0,0.01922219]
[1754708590813,1.14826715,116540.0,116530.0,0.01922219]
[1754708591415,1.01838715,116540.0,116530.0,0.01922219]
[1754708591624,1.14826715,116540.0,116530.0,0.01922219]
[1754708592941,0.51292125,116540.0,116530.0,0.01922219]
[1754708593159,1.14826715,116540.0,116530.0,0.01922219]
[1754708595432,1.01838715,116540.0,116530.0,0.01922219]
[1754708595641,1.14826715,116540.0,116530.0,0.01922219]
[1754708596390,1.01838715,116540.0,116530.0,0.01922219]
[1754708596590,1.14822715,116540.0,116530.0,0.01922219]
[1754708597270,0.51288125,116540.0,116530.0,0.01922219]
[1754708597585,1.14822715,116540.0,116530.0,0.01922219]
[1754708598317,0.51288125,116540.0,116530.0,0.01922219]
[1754708598524,1.14822715,116540.0,116530.0,0.01922219]
[1754708601562,0.51288125,116540.0,116530.0,0.01922219]
[1754708601724,1.14822715,116540.0,116530.0,0.01922219]
[1754708605337,1.01838715,116540.0,116530.0,0.01922219]
[1754708605513,1.14822715,116540.0,116530.0,0.01922219]
[1754708606360,1.01838715,116540.0,116530.0,0.01922219]
[1754708606536,1.14822715,116540.0,116530.0,0.01922219]
[1754708612865,0.51288125,116540.0,116530.0,0.01922219]
[1754708613091,1.14822715,116540.0,116530.0,0.01922219]
[1754708613520,0.51288125,116540.0,116530.0,0.01922219]
[1754708613711,1.14822715,116540.0,116530.0,0.01922219]
[1754708621380,1.01838715,116540.0,116530.0,0.01922219]
[1754708621506,1.14822715,116540.0,116530.0,0.01922219]
[1754708625386,1.01838715,116540.0,116530.0,0.01922219]
[1754708625594,1.14822715,116540.0,116530.0,0.01922219]
[1754708626092,0.51288125,116540.0,116530.0,0.01922219]
[1754708626257,1.14822715,116540.0,116530.0,0.01922219]
[1754708635460,1.01838715,116540.0,116530.0,0.01922219]
[1754708635604,1.14822715,116540.0,116530.0,0.01922219]
[1754708637386,0.51288125,116540.0,116530.0,0.01922219]
[1754708637594,1.14822715,116540.0,116530.0,0.01922219]
[1754708642744,0.17165695,116520.0,116500.0,0.1766364]
[1754708642963,0.61913203,116510.0,116500.0,0.09945571]
[1754708643181,0.61913203,116510.0,116500.0,0.10137571]
[1754708643416,0.64492003,116510.0,116500.0,0.10137571]
[1754708644286,0.64892003,116510.0,116500.0,0.10137571]
[1754708644696,0.65092003,116510.0,116500.0,0.10137571]
[1754708644948,0.74071428,116510.0,116500.0,0.10137571]
[1754708647788,0.74071428,116510.0,116500.0,0.03189809]
[1754708648197,0.74285428,116510.0,116500.0,0.03189809]
[1754708651768,0.74285428,116510.0,116500.0,0.02997809]
[1754708656011,0.75154409,116510.0,116500.0,0.02997809]
[1754708658254,0.74285428,116510.0,116500.0,0.02997809]
[1754708658780,0.74068261,116510.0,116500.0,0.02997809]
[1754708660889,0.65388836,116510.0,116500.0,0.02997809]
[1754708661100,0.65364782,116510.0,116500.0,0.02997809]
[1754708661684,0.33597487,116510.0,116500.0,0.02997809]
[1754708661922,0.65364782,116510.0,116500.0,0.02997809]
[1754708662527,0.33597487,116510.0,116500.0,0.02997809]
[1754708662730,0.65364782,116510.0,116500.0,0.02997809]
[1754708664339,0.74044207,116510.0,116500.0,0.02997809]
[1754708683750,0.42276912,116510.0,116500.0,0.02997809]
[1754708684009,0.74044207,116510.0,116500.0,0.02997809]
[1754708684982,0.42276912,116510.0,116500.0,0.02997809]
[1754708686739,0.74044207,116510.0,116500.0,0.02997809]
[1754708686941,0.42280912,116510.0,116500.0,0.34957104]
[1754708687195,0.33087487,116510.0,116500.0,0.34957104]
[1754708687611,0.33397487,116510.0,116500.0,0.34957104]
[1754708689750,0.42281698,116510.0,116500.0,0.02997809]
[1754708690050,0.74048993,116510.0,116500.0,0.02997809]
[1754708691090,0.42281698,116510.0,116500.0,0.34765104]
[1754708691304,0.50961123,116510.0,116500.0,0.02997809]
[1754708691528,0.50961123,116510.0,116500.0,0.34765104]
[1754708693309,0.50961123,116510.0,116500.0,0.02997809]
[1754708693488,0.50961123,116510.0,116500.0,0.34765104]
[1754708695501,0.50961123,116510.0,116500.0,0.02997809]
[1754708695946,0.82728418,116510.0,116500.0,0.02997809]
[1754708698437,0.82728418,116510.0,116500.0,0.02670613]
[1754708707804,0.50961123,116510.0,116500.0,0.02670613]
[1754708707991,0.82728418,116510.0,116500.0,0.02670613]
[1754708711527,0.50961123,116510.0,116500.0,0.02670613]
[1754708711765,0.82728418,116510.0,116500.0,0.02670613]
[1754708727025,0.50961123,116510.0,116500.0,0.02670613]
[1754708727345,0.82728418,116510.0,116500.0,0.02670613]
[1754708729488,0.50961123,116510.0,116500.0,0.02670613]
[1754708729702,0.82728418,116510.0,116500.0,0.02670613]
[1754708729835,0.50961123,116510.0,116500.0,0.02670613]
[1754708730030,0.82728418,116510.0,116500.0,0.02670613]
[1754708738143,0.50961123,116510.0,116500.0,0.02670613]
[1754708738351,0.82728418,116510.0,116500.0,0.02670613]
[1754708739425,0.50961123,116510.0,116500.0,0.02670613]
[1754708739758,0.82728418,116510.0,116500.0,0.02670613]
[1754708751269,0.50961123,116510.0,116500.0,0.02670613]
[1754708751479,0.82728418,116510.0,116500.0,0.02670613]
[1754708756117,0.50961123,116510.0,116500.0,0.02670613]
[1754708756285,0.82728418,116510.0,116500.0,0.02670613]
[1754708765622,0.50961123,116510.0,116500.0,0.02670613]
[1754708765838,0.82728418,116510.0,116500.0,0.02670613]
[1754708768223,0.50961123,116510.0,116500.0,0.02670613]
[1754708768430,0.82728418,116510.0,116500.0,0.02670613]
[1754708770522,0.69744418,116510.0,116500.0,0.02670613]
[1754708770730,0.82792418,116510.0,116500.0,0.02670613]
[1754708775475,0.69744418,116510.0,116500.0,0.02670613]
[1754708775611,0.82792418,116510.0,116500.0,0.02670613]
[1754708776446,0.82788418,116510.0,116500.0,0.02670613]
[1754708777049,0.69744418,116510.0,116500.0,0.02670613]
[1754708777227,0.82788418,116510.0,116500.0,0.02670613]
[1754708783843,0.37977123,116510.0,116500.0,0.02670613]
[1754708784096,0.74108993,116510.0,116500.0,0.02670613]
[1754708784292,0.73910993,116510.0,116500.0,0.02862613]
[1754708785704,0.74126993,116510.0,116500.0,0.02862613]
[1754708787894,0.42359698,116510.0,116500.0,0.02862613]
[1754708788041,0.74126993,116510.0,116500.0,0.02862613]
[1754708788243,0.82806418,116510.0,116500.0,0.02862613]
[1754708790579,0.29315698,116510.0,116500.0,0.02862613]
[1754708790813,0.42135698,116510.0,116500.0,0.09810375]
[1754708791027,0.42135698,116510.0,116500.0,0.4157767]
[1754708791242,0.42135698,116510.0,116500.0,0.02862613]
[1754708791431,0.42135698,116510.0,116500.0,0.34629908]
[1754708792622,0.4373695,116510.0,116500.0,0.02862613]
[1754708792827,0.4395295,116510.0,116500.0,0.34629908]
[1754708796549,0.4395295,116510.0,116500.0,0.02862613]
[1754708796770,0.4395295,116510.0,116500.0,0.34629908]
[1754708799170,0.42351698,116510.0,116500.0,0.34629908]
[1754708801609,0.42135698,116510.0,116500.0,0.02862613]
[1754708801850,0.33151487,116510.0,116500.0,0.66397203]
[1754708802008,0.33151487,116510.0,116500.0,0.34629908]
[1754708802412,0.32951487,116510.0,116500.0,0.02862613]
[1754708802654,0.32551487,116510.0,116500.0,0.34629908]
[1754708802854,0.32651487,116510.0,116500.0,0.34629908]
[1754708803056,0.32651487,116510.0,116500.0,0.34729908]
[1754708803266,0.32551487,116510.0,116500.0,0.34729908]
[1754708805299,0.32559487,116510.0,116500.0,0.34729908]
[1754708805577,0.19503487,116510.0,116500.0,0.34729908]
[1754708805778,0.32555487,116510.0,116500.0,0.34729908]
[1754708808809,0.32860487,116510.0,116500.0,0.34729908]
[1754708810233,0.32555487,116510.0,116500.0,0.34729908]
[1754708810646,0.32860487,116510.0,116500.0,0.34729908]
[1754708811067,0.33076487,116510.0,116500.0,0.34729908]
[1754708811956,0.33076487,116510.0,116500.0,0.02962613]
[1754708812132,0.33076487,116510.0,116500.0,0.34729908]
[1754708812593,0.7304473,116510.0,116500.0,0.02770613]
[1754708813712,0.81730941,116510.0,116500.0,0.02770613]
[1754708815424,0.68678941,116510.0,116500.0,0.02770613]
[1754708815592,0.81742941,116510.0,116500.0,0.02770613]
[1754708822200,0.49975646,116510.0,116500.0,0.02770613]
[1754708822377,0.81742941,116510.0,116500.0,0.02770613]
[1754708827985,1.17693138,116510.0,116500.0,0.02770613]
[1754708828417,0.83487843,116510.0,116500.0,0.02770613]
[1754708828627,0.51720548,116510.0,116500.0,0.02770613]
[1754708828754,0.83487843,116510.0,116500.0,0.02770613]
[1754708828963,0.83687843,116510.0,116500.0,0.02770613]
[1754708829721,0.83687843,116510.0,116500.0,0.02670613]
[1754708829865,0.83887843,116510.0,116500.0,0.02670613]
[1754708841140,0.82142941,116510.0,116500.0,0.02670613]
[1754708843537,0.42174698,116510.0,116500.0,0.02670613]
[1754708843740,0.73941993,116510.0,116500.0,0.02670613]
[1754708851234,0.42174698,116510.0,116500.0,0.02670613]
[1754708851445,0.73941993,116510.0,116500.0,0.02670613]
[1754708851643,0.42174698,116510.0,116500.0,0.02670613]
[1754708851845,0.73941993,116510.0,116500.0,0.02670613]
[1754708852219,0.82621418,116510.0,116500.0,0.02670613]
[1754708853198,0.73941993,116510.0,116500.0,0.02670613]
[1754708876439,0.42174698,116510.0,116500.0,0.02670613]
[1754708876644,0.73941993,116510.0,116500.0,0.02670613]
[1754708891539,0.42174698,116510.0,116500.0,0.02670613]
[1754708891757,0.73941993,116510.0,116500.0,0.02670613]
[1754708891943,0.82621418,116510.0,116500.0,0.02670613]
[1754708900137,0.50854123,116510.0,116500.0,0.02670613]
[1754708900342,0.73941993,116510.0,116500.0,0.02670613]
[1754708904531,0.42174698,116510.0,116500.0,0.02670613]
[1754708904743,0.73941993,116510.0,116500.0,0.02670613]
[1754708958764,0.73855301,116510.0,116500.0,0.02670613]
[1754708989565,0.42088006,116510.0,116500.0,0.02670613]
[1754708989772,0.73855301,116510.0,116500.0,0.02670613]
[1754708990167,0.42088006,116510.0,116500.0,0.02670613]
[1754708990372,0.73855301,116510.0,116500.0,0.02670613]
[1754708996246,0.77651763,116510.0,116500.0,0.02670613]
[1754708997160,0.73855301,116510.0,116500.0,0.02670613]
[1754708997370,0.42088006,116510.0,116500.0,0.02670613]
[1754708997609,0.73855301,116510.0,116500.0,0.02670613]
[1754709002993,0.42088006,116510.0,116500.0,0.02670613]
[1754709003193,0.29024006,116510.0,116500.0,0.02670613]
[1754709003401,0.73795301,116510.0,116500.0,0.02862613]
[1754709004896,0.73795301,116510.0,116500.0,0.02670613]
[1754709008514,0.42028006,116510.0,116500.0,0.02670613]
[1754709008753,0.73795301,116510.0,116500.0,0.02862613]
[1754709010331,0.42028006,116510.0,116500.0,0.02670613]
[1754709010488,0.73795301,116510.0,116500.0,0.02670613]
[1754709014444,0.42028006,116510.0,116500.0,0.02670613]
[1754709014717,0.73795301,116510.0,116500.0,0.02670613]
[1754709014864,0.41812006,116510.0,116500.0,0.02862613]
[1754709015050,0.73579301,116510.0,116500.0,0.02862613]
[1754709016985,0.73777301,116510.0,116500.0,0.02862613]
[1754709017554,0.73777301,116510.0,116500.0,0.02670613]
[1754709018175,0.42010006,116510.0,116500.0,0.02670613]
[1754709018375,0.73777301,116510.0,116500.0,0.02670613]
[1754709018599,0.42010006,116510.0,116500.0,0.02670613]
[1754709018923,0.73777301,116510.0,116500.0,0.02670613]
[1754709024164,0.60773301,116510.0,116500.0,0.02670613]
[1754709024328,0.73777301,116510.0,116500.0,0.02670613]
[1754709024918,0.73676168,116510.0,116500.0,0.02670613]
[1754709025739,0.41908873,116510.0,116500.0,0.02670613]
[1754709025996,0.73676168,116510.0,116500.0,0.02670613]
[1754709030308,0.82355593,116510.0,116500.0,0.02670613]
[1754709030819,0.73676168,116510.0,116500.0,0.02670613]
[1754709033634,0.28904873,116510.0,116500.0,0.02670613]
[1754709033839,0.73672168,116510.0,116500.0,0.02670613]
[1754709053222,0.41904873,116510.0,116500.0,0.02670613]
[1754709053423,0.73672168,116510.0,116500.0,0.02670613]
[1754709054827,0.41904873,116510.0,116500.0,0.02670613]
[1754709054995,0.73672168,116510.0,116500.0,0.02670613]
[1754709055890,0.41904873,116510.0,116500.0,0.02670613]
[1754709056121,0.73672168,116510.0,116500.0,0.02670613]
[1754709066437,0.41904873,116510.0,116500.0,0.02670613]
[1754709066847,0.73672168,116510.0,116500.0,0.02670613]
[1754709068167,0.28904873,116510.0,116500.0,0.34437908]
[1754709068370,0.19715662,116510.0,116500.0,0.51797289]
[1754709068556,0.029788,116510.0,116500.0,0.83564584]
[1754709068793,0.029788,116510.0,116500.0,0.83684584]
[1754709069003,0.135,116510.0,116500.0,0.91407389]
[1754709069214,0.004,116510.0,116500.0,1.23174684]
[1754709069431,0.002,116510.0,116500.0,0.83684584]
[1754709069636,0.003,116510.0,116500.0,0.90632346]
[1754709070249,0.002,116510.0,116500.0,0.99318557]
[1754709070456,0.13104,116520.0,116510.0,0.17165908]
[1754709070668,0.4121941,116530.0,116520.0,0.17164435]
[1754709070669,0.025783,116530.0,116520.0,0.17164435]
[1754709070876,0.13104,116530.0,116520.0,0.80891025]
[1754709071168,0.13104,116530.0,116520.0,0.81011025]
[1754709071607,0.13104,116530.0,116520.0,0.4924373]
[1754709071818,0.13104,116530.0,116520.0,0.17476435]
[1754709072039,0.13304,116530.0,116520.0,0.4912373]
[1754709072206,0.30466962,116530.0,116520.0,0.4912373]
[1754709075123,0.30466962,116530.0,116520.0,0.00192]
[1754709075324,0.30466962,116530.0,116520.0,0.31959295]
[1754709075325,0.30776962,116530.0,116520.0,0.31959295]
[1754709075754,0.30976962,116530.0,116520.0,0.31959295]
[1754709076203,0.30776962,116530.0,116520.0,0.31959295]
[1754709077185,0.30777962,116530.0,116520.0,0.31959295]
[1754709077498,0.30777962,116530.0,116520.0,0.32059295]
[1754709078684,0.30777962,116530.0,116520.0,0.00292]
[1754709078887,0.30777962,116530.0,116520.0,0.32059295]
[1754709081907,0.30777962,116530.0,116520.0,0.00292]
[1754709086898,0.30777962,116530.0,116520.0,0.001]
[1754709089859,0.30777962,116530.0,116520.0,0.31867295]
[1754709090015,0.30777962,116530.0,116520.0,0.001]
[1754709090214,0.62545257,116530.0,116520.0,0.001]
[1754709092001,0.30777962,116530.0,116520.0,0.001]
[1754709092328,0.62545257,116530.0,116520.0,0.001]
[1754709092909,0.30777962,116530.0,116520.0,0.31867295]
[1754709093315,0.30777962,116530.0,116520.0,0.001]
[1754709097773,0.30777962,116530.0,116520.0,0.31867295]
[1754709098034,0.30777962,116530.0,116520.0,0.001]
[1754709098286,0.30777962,116530.0,116520.0,0.31867295]
[1754709098506,0.30777962,116530.0,116520.0,0.001]
[1754709098718,0.30777962,116530.0,116520.0,0.31867295]
[1754709099852,0.13615,116530.0,116520.0,0.4922373]
[1754709100482,0.17161489,116540.0,116530.0,0.17162962]
[1754709100688,0.30832489,116540.0,116530.0,0.48930257]
[1754709101311,0.30832489,116540.0,116530.0,0.49122257]
[1754709101731,0.31232489,116540.0,116530.0,0.49122257]
[1754709102547,0.31232489,116540.0,116530.0,0.48930257]
[1754709103205,0.31032489,116540.0,116530.0,0.48930257]
[1754709103439,0.30832489,116540.0,116530.0,0.48930257]
[1754709103647,0.30932489,116540.0,116530.0,0.48930257]
[1754709103859,0.30932489,116540.0,116530.0,0.49030257]
[1754709104072,0.30832489,116540.0,116530.0,0.49030257]
[1754709105118,0.30832489,116540.0,116530.0,0.31867295]
[1754709105545,0.30832489,116540.0,116530.0,0.001]
[1754709107381,0.30832489,116540.0,116530.0,0.31867295]
[1754709108832,0.30832489,116540.0,116530.0,0.001]
[1754709110300,0.17676489,116540.0,116530.0,0.31867295]
[1754709110482,0.30840489,116540.0,116530.0,0.31867295]
[1754709112321,0.30840489,116540.0,116530.0,0.49030257]
[1754709112528,0.30840489,116540.0,116530.0,0.001]
[1754709112735,0.30840489,116540.0,116530.0,0.31867295]
[1754709113093,0.30840489,116540.0,116530.0,0.001]
[1754709113307,0.30840489,116540.0,116530.0,0.31867295]
[1754709114110,0.30840489,116540.0,116530.0,0.34831365]
[1754709114346,0.30840489,116540.0,116530.0,0.31867295]
[1754709116786,0.30840489,116540.0,116530.0,0.49030257]
[1754709118653,0.30840489,116540.0,116530.0,0.001]
[1754709118861,0.30840489,116540.0,116530.0,0.31867295]
[1754709120903,0.17676489,116540.0,116530.0,0.31867295]